fUST/lending_fUST_20250701
["ID","MTS","AMOUNT","RATE_DAILY","PERIOD"]
[368718611,1751321441110,-460.0,0.00021433,2]
[368718612,1751321441120,-460.0,0.00021468,2]
[368718613,1751321441130,-460.0,0.00021468,2]
[368718614,1751321441141,-589.11,0.00021468,2]
[368718615,1751321441150,-664.0,0.0002147,2]
[368718616,1751321441160,-1597.0,0.00021472,2]
[368718617,1751321441171,-1589.87982127,0.00021553,2]
[368718618,1751321441180,-1141.99768446,0.0002159,5]
[368718619,1751321441190,-151.0,0.000216,3]
[368718620,1751321441200,-168.0,0.00021649,2]
[368718621,1751321441210,-400.239292,0.00021699,2]
[368718622,1751321441220,-151.0,0.000217,4]
[368718623,1751321441231,-460.0,0.00021707,2]
[368718624,1751321441240,-460.0,0.00021707,2]
[368718625,1751321441250,-151.0,0.00021718,2]
[368718626,1751321441260,-335.59,0.00021742,2]
[368718627,1751321441270,-460.0,0.00021742,2]
[368718628,1751321441280,-589.11,0.00021742,2]
[368718629,1751321441290,-1141.99768446,0.00021762,5]
[368718630,1751321441300,-401.21480928,0.00021768,2]
[368718631,1751321441310,-1000.0,0.00021771,5]
[368718632,1751321441320,-1210.91323182,0.0002178,2]
[368718633,1751321441329,-151.0,0.000218,4]
[368718634,1751321441340,-1400.64,0.000219,2]
[368718635,1751321441350,-151.0,0.000219,3]
[368718636,1751321441360,-1589.87982127,0.000219,2]
[368718637,1751321441371,-500.0,0.00021917,2]
[368718638,1751321441381,-500.0,0.00021917,2]
[368718639,1751321441399,-500.0,0.00021917,2]
[368718640,1751321441409,-500.0,0.00021917,2]
[368718641,1751321441420,-500.0,0.00021917,2]
[368718642,1751321441432,-500.0,0.00021917,2]
[368718643,1751321441442,-500.0,0.00021917,2]
[368718644,1751321441452,-500.0,0.00021917,2]
[368718645,1751321441464,-500.0,0.00021917,2]
[368718646,1751321441476,-460.0,0.00021917,2]
[368718647,1751321441486,-460.0,0.00021917,2]
[368718648,1751321441496,-460.0,0.00021917,2]
[368718649,1751321441506,-502.03928275,0.00021917,2]
[368718650,1751321441516,-500.0,0.00021917,2]
[368718651,1751321441526,-1317.7223025,0.00021918,7]
[368718652,1751321441535,-400.0,0.00021918,7]
[368718653,1751321441545,-1142.47664435,0.00021918,2]
[368718654,1751321441555,-300.0,0.00021918,2]
[368718655,1751321441565,-1141.99768446,0.00021934,6]
[368718656,1751321441575,-500.0,0.00021973,2]
[368718657,1751321441585,-500.0,0.00021973,2]
[368718658,1751321441595,-508.01447442,0.00021973,2]
[368718659,1751321441604,-500.0,0.00021973,2]
[368718660,1751321441614,-500.0,0.00021973,2]
[368718661,1751321441624,-500.0,0.00021973,2]
[368718662,1751321441633,-500.0,0.00021973,2]
[368718663,1751321441645,-500.0,0.00021973,2]
[368718664,1751321441655,-501.58217862,0.00021973,2]
[368718665,1751321441664,-500.0,0.00021973,2]
[368718666,1751321441675,-500.0,0.00021973,2]
[368718667,1751321441685,-311.95562575,0.00021973,2]
[368718668,1751321441695,-500.0,0.00021973,2]
[368718669,1751321441704,-500.0,0.00021973,2]
[368718670,1751321441714,-500.0,0.00021973,2]
[368718671,1751321441724,-521.29076982,0.00021973,2]
[368718672,1751321441734,-500.0,0.00021973,2]
[368718673,1751321441743,-500.0,0.00021973,2]
[368718674,1751321441753,-601.62581877,0.00021973,2]
[368718675,1751321441762,-500.0,0.00021973,2]
[368718676,1751321441772,-500.0,0.00021973,2]
[368718677,1751321441781,-500.0,0.00021973,2]
[368718678,1751321441791,-500.0,0.00021973,2]
[368718679,1751321441800,-500.0,0.00021973,2]
[368718680,1751321441810,-500.0,0.00021973,2]
[368718681,1751321441819,-500.0,0.00021973,2]
[368718682,1751321441828,-500.0,0.00021973,2]
[368718683,1751321441838,-500.0,0.00021973,2]
[368718684,1751321441848,-552.70320587,0.00021973,2]
[368718685,1751321441857,-500.0,0.00021973,2]
[368718686,1751321441867,-500.0,0.00021973,2]
[368718687,1751321441876,-500.0,0.00021973,2]
[368718688,1751321441886,-500.0,0.00021973,2]
[368718689,1751321441895,-500.0,0.00021973,2]
[368718690,1751321441905,-500.0,0.00021973,2]
[368718691,1751321441914,-500.0,0.00021973,2]
[368718692,1751321441925,-500.0,0.00021973,2]
[368718693,1751321441935,-500.0,0.00021973,2]
[368718694,1751321441945,-502.90420814,0.00021973,2]
[368718695,1751321441954,-194.43274689,0.00021973,2]
[368718696,1751321441964,-600.0,0.00021973,2]
[368718697,1751321441977,-500.0,0.00021981,2]
[368718698,1751321441987,-460.0,0.00021981,2]
[368718699,1751321441997,-460.0,0.00021981,2]
[368718700,1751321442006,-372.50764745,0.00021998,2]
[368718701,1751321442016,-22380.07151686,0.00022,2]
[368718702,1751321442025,-7377.31664678,0.00022,2]
[368718703,1751321442035,-756577.60148874,0.00022,5]
[368718704,1751321442526,-63.10615583,0.00022,5]
[368718705,1751321442538,-2614.77884091,0.00022,5]
[368718706,1751321442647,-4005.5220599,0.00022,5]
[368718707,1751321442658,-726.97488562,0.00022,5]
[368718708,1751321444026,-460.0,0.00019276,2]
[368718709,1751321444036,-460.0,0.0001955,2]
[368718710,1751321444094,-35.54031956,0.00019824,2]
[368718720,1751321446512,-424.45968044,0.00019824,2]
[368718721,1751321446522,-395.83031956,0.000206,2]
[368718722,1751321446568,-2727.58968044,0.000206,2]
[368718724,1751321446577,-3715.87,0.00021907,10]
[368718725,1751321446586,-680.04991428,0.00022,5]
[368718726,1751321446596,-351.88205673,0.00022,2]
[368718727,1751321446605,-10792.93146828,0.00022,2]
[368718728,1751321446615,-3736.22442098,0.00022,2]
[368718729,1751321530017,210.2394535,0.00025007,60]
[368718766,1751322206398,150.5,0.00021963,120]
[368718771,1751322206991,150.5,0.00021953,120]
[368718775,1751322207518,150.5,0.00021943,120]
[368718816,1751322300442,297.125636,0.00013699,2]
[368718859,1751322359205,-200.0,0.00019274,2]
[368718860,1751322359229,-460.0,0.00019274,2]
[368718861,1751322359251,-300.0,0.00019274,2]
[368718862,1751322359272,-461.62289177,0.00019275,2]
[368718863,1751322359294,-460.0,0.00019275,2]
[368718864,1751322359315,-460.0,0.00019275,2]
[368718865,1751322359336,-460.0,0.00019275,2]
[368718866,1751322359357,-349.82435402,0.00019275,2]
[368718867,1751322359379,-460.0,0.00019275,2]
[368718868,1751322359401,-431.87341158,0.00019275,2]
[368718869,1751322359423,-253.19059902,0.00019275,2]
[368718890,1751322427093,-281.39248048,0.00019175,2]
[368718891,1751322427118,-51.28198617,0.00019274,2]
[368718894,1751322441098,-254.79942607,0.00019274,2]
[368718895,1751322457849,2734.0,0.00024986,60]
[368718896,1751322562351,-300.0,0.00019273,2]
[368718897,1751322562374,-153.91858776,0.00019274,2]
[368718898,1751322562398,-460.0,0.00019274,2]
[368718899,1751322562421,-460.0,0.00019274,2]
[368718900,1751322562443,-460.0,0.00019274,2]
[368718901,1751322562464,-460.0,0.00019274,2]
[368718902,1751322562485,-460.0,0.00019274,2]
[368718903,1751322562507,-460.0,0.00019274,2]
[368718904,1751322562530,-460.0,0.00019274,2]
[368718905,1751322562550,-460.0,0.00019274,2]
[368718906,1751322562571,-460.0,0.00019274,2]
[368718907,1751322562593,-460.0,0.00019274,2]
[368718908,1751322562613,-460.0,0.00019274,2]
[368718909,1751322562634,-460.0,0.00019274,2]
[368718910,1751322562654,-460.0,0.00019274,2]
[368718911,1751322562676,-460.0,0.00019274,2]
[368718912,1751322562696,-460.0,0.00019274,2]
[368718913,1751322562717,-460.0,0.00019274,2]
[368718914,1751322562741,-460.0,0.00019274,2]
[368718915,1751322562762,-460.0,0.00019274,2]
[368718916,1751322562784,-460.0,0.00019274,2]
[368718917,1751322562806,-321.33140476,0.00019274,2]
[368718918,1751322562828,-460.0,0.00019274,2]
[368718919,1751322562850,-460.0,0.00019274,2]
[368718920,1751322562872,-460.0,0.00019274,2]
[368718921,1751322562894,-460.0,0.00019274,2]
[368718922,1751322562915,-269.57425609,0.00019274,2]
[368718923,1751322562936,-178.46786695,0.00019275,2]
[368718924,1751322562958,-460.62415949,0.00019275,2]
[368718925,1751322562979,-460.0,0.00019275,2]
[368718928,1751322562999,-460.0,0.00019275,2]
[368718929,1751322563021,-460.0,0.00019275,2]
[368718931,1751322563041,-279.56492929,0.00019275,2]
[368718932,1751322563061,-460.0,0.00019275,2]
[368718934,1751322563082,-460.0,0.00019275,2]
[368718935,1751322563103,-460.0,0.00019275,2]
[368718936,1751322563124,-460.0,0.00019275,2]
[368718937,1751322563149,-460.0,0.00019275,2]
[368718938,1751322563169,-309.71252742,0.00019275,2]
[368718939,1751322565111,-152.34256669,0.00019275,2]
[368718940,1751322565134,-460.97542807,0.00019275,2]
[368718941,1751322565156,-460.0,0.00019275,2]
[368718942,1751322565178,-157.47700191,0.00019275,2]
[368718943,1751322565202,-470.0,0.00019275,2]
[368718944,1751322565223,-460.0,0.00019275,2]
[368718945,1751322565245,-460.0,0.00019275,2]
[368718946,1751322565267,-460.0,0.00019275,2]
[368718947,1751322565289,-460.0,0.00019275,2]
[368718948,1751322565311,-463.32376284,0.00019275,2]
[368718949,1751322565333,-460.0,0.00019275,2]
[368718950,1751322565354,-460.0,0.00019275,2]
[368718951,1751322565376,-391.64627168,0.00019275,2]
[368718960,1751322632571,-300.0,0.00019273,2]
[368718961,1751322632581,-460.0,0.00019274,2]
[368718962,1751322632590,-460.0,0.00019274,2]
[368718963,1751322632600,-460.0,0.00019274,2]
[368718964,1751322632610,-460.0,0.00019274,2]
[368718965,1751322632619,-460.0,0.00019274,2]
[368718966,1751322632629,-460.0,0.00019274,2]
[368718967,1751322632639,-68.35372832,0.00019275,2]
[368718968,1751322632648,-460.0,0.00019275,2]
[368718969,1751322632658,-460.0,0.00019275,2]
[368718970,1751322632668,-460.0,0.00019275,2]
[368718971,1751322632678,-460.0,0.00019275,2]
[368718972,1751322632688,-460.0,0.00019275,2]
[368718973,1751322632697,-460.0,0.00019275,2]
[368718974,1751322632707,-460.64442087,0.00019275,2]
[368718975,1751322632716,-460.0,0.00019275,2]
[368718976,1751322632726,-460.0,0.00019275,2]
[368718977,1751322632735,-466.38,0.00019275,2]
[368718978,1751322632749,-467.46386917,0.00019275,2]
[368718979,1751322632759,-460.0,0.00019275,2]
[368718980,1751322632768,-460.0,0.00019275,2]
[368718982,1751322632778,-380.09694552,0.00019275,2]
[368718984,1751322632788,-460.0,0.00019275,2]
[368718986,1751322632797,-550.44,0.00019275,2]
[368718988,1751322632807,-460.0,0.00019275,2]
[368718990,1751322632821,-460.0,0.00019275,2]
[368718992,1751322632830,-604.85,0.00019275,2]
[368718993,1751322632839,-460.0,0.00019275,2]
[368718995,1751322632850,-460.0,0.00019275,2]
[368718997,1751322632859,-3.99953506,0.00019275,2]
[368719105,1751322638628,-460.0,0.00019274,2]
[368719106,1751322638638,-456.00046494,0.00019275,2]
[368719107,1751322638649,-553.63,0.00019275,2]
[368719108,1751322638659,-460.61730015,0.00019275,2]
[368719109,1751322638670,-460.0,0.00019275,2]
[368719110,1751322638680,-460.0,0.00019275,2]
[368719111,1751322638691,-460.0,0.00019275,2]
[368719112,1751322638701,-460.0,0.00019275,2]
[368719113,1751322638711,-460.0,0.00019275,2]
[368719114,1751322638722,-460.0,0.00019275,2]
[368719115,1751322638731,-460.0,0.00019275,2]
[368719116,1751322638744,-460.0,0.00019275,2]
[368719117,1751322638754,-460.0,0.00019275,2]
[368719118,1751322638763,-460.0,0.00019275,2]
[368719119,1751322638774,-460.0,0.00019275,2]
[368719120,1751322638783,-460.0,0.00019275,2]
[368719121,1751322638793,-460.0,0.00019276,2]
[368719122,1751322638803,-197.61260308,0.00019276,2]
[368719123,1751322638814,-460.0,0.00019276,2]
[368719124,1751322638823,-460.0,0.00019276,2]
[368719125,1751322638834,-493.49,0.00019276,2]
[368719126,1751322638843,-460.0,0.00019276,2]
[368719127,1751322638852,-460.0,0.00019276,2]
[368719128,1751322638862,-460.0,0.00019276,2]
[368719129,1751322638871,-460.0,0.00019276,2]
[368719130,1751322638880,-566.08,0.00019276,2]
[368719131,1751322638890,-490.64,0.00019276,2]
[368719132,1751322638900,-460.0,0.00019276,2]
[368719133,1751322638910,-460.0,0.00019276,2]
[368719134,1751322638919,-500.0,0.00019276,2]
[368719135,1751322638928,-460.0,0.00019276,2]
[368719136,1751322638937,-460.0,0.00019276,2]
[368719137,1751322638947,-460.0,0.00019276,2]
[368719138,1751322638957,-460.0,0.00019276,2]
[368719139,1751322638967,-460.0,0.00019276,2]
[368719140,1751322638976,-221.34,0.00019276,2]
[368719141,1751322638986,-460.0,0.00019276,2]
[368719142,1751322638995,-460.0,0.00019276,2]
[368719143,1751322639004,-240.46300817,0.00019276,2]
[368719144,1751322639014,-460.0,0.00019276,2]
[368719145,1751322639024,-532.37,0.00019276,2]
[368719146,1751322639034,-460.0,0.00019276,2]
[368719147,1751322639043,-380.37494551,0.00019276,2]
[368719148,1751322639052,-486.56719486,0.00019276,2]
[368719149,1751322639062,-460.0,0.00019276,2]
[368719150,1751322639071,-460.0,0.00019276,2]
[368719151,1751322639081,-419.22549664,0.00019276,2]
[368719152,1751322639090,-460.0,0.00019276,2]
[368719153,1751322639099,-460.0,0.00019276,2]
[368719154,1751322639108,-460.0,0.00019276,2]
[368719155,1751322639118,-507.97,0.00019276,2]
[368719157,1751322639127,-460.0,0.00019276,2]
[368719159,1751322639136,-460.0,0.00019276,2]
[368719161,1751322639146,-570.11,0.00019276,2]
[368719162,1751322639156,-787.18,0.00019276,2]
[368719163,1751322639166,-460.0,0.00019276,2]
[368719164,1751322639175,-460.0,0.00019276,2]
[368719165,1751322639185,-460.0,0.00019276,2]
[368719166,1751322639194,-460.0,0.00019548,2]
[368719167,1751322639204,-460.0,0.00019548,2]
[368719168,1751322639213,-460.0,0.00019548,2]
[368719169,1751322639223,-421.26,0.00019548,2]
[368719170,1751322639232,-171.8,0.00019548,2]
[368719171,1751322639242,-220.13705658,0.00019548,2]
[368719172,1751322639251,-460.0,0.00019548,2]
[368719173,1751322639260,-525.28294791,0.00019548,2]
[368719174,1751322639270,-460.0,0.00019548,2]
[368719175,1751322639279,-438.51630679,0.00019549,2]
[368719176,1751322639289,-460.0,0.00019549,2]
[368719177,1751322639298,-460.0,0.00019549,2]
[368719178,1751322639308,-466.38,0.00019549,2]
[368719179,1751322639317,-460.0,0.00019549,2]
[368719180,1751322639326,-259.67,0.00019549,2]
[368719181,1751322639336,-460.0,0.00019549,2]
[368719182,1751322639346,-460.0,0.00019549,2]
[368719183,1751322639356,-288.4,0.00019549,2]
[368719184,1751322639366,-460.0,0.00019549,2]
[368719185,1751322639375,-460.0,0.00019549,2]
[368719186,1751322639385,-460.0,0.0001955,2]
[368719187,1751322639394,-280.68,0.0001955,2]
[368719188,1751322639404,-206.6,0.0001955,2]
[368719189,1751322639413,-460.0,0.0001955,2]
[368719190,1751322639422,-787.18,0.0001955,2]
[368719191,1751322639432,-460.0,0.0001955,2]
[368719192,1751322639441,-500.0,0.00019588,2]
[368719193,1751322639451,-460.0,0.00019822,2]
[368719194,1751322639461,-460.0,0.00019822,2]
[368719195,1751322639470,-460.0,0.00019822,2]
[368719196,1751322639480,-460.0,0.00019822,2]
[368719197,1751322639490,-460.0,0.00019823,2]
[368719198,1751322639499,-460.0,0.00019823,2]
[368719199,1751322639509,-466.38,0.00019823,2]
[368719200,1751322639519,-488.26,0.00019823,2]
[368719201,1751322639529,-460.0,0.00019823,2]
[368719202,1751322639538,-471.51165661,0.00019823,2]
[368719203,1751322639547,-460.0,0.00019823,2]
[368719204,1751322639557,-307.04027585,0.00019823,2]
[368719205,1751322639566,-460.0,0.00019824,2]
[368719206,1751322639576,-460.0,0.00019824,2]
[368719207,1751322639586,-787.18,0.00019824,2]
[368719208,1751322639595,-460.0,0.00019824,2]
[368719209,1751322639604,-292.54142098,0.00019853,2]
[368719210,1751322639613,-1241.29873572,0.000199,2]
[368719211,1751322639623,-156.67817505,0.00020071,2]
[368719212,1751322639633,-500.0,0.00020071,2]
[368719213,1751322639642,-500.0,0.00020071,2]
[368719214,1751322639652,-500.0,0.00020071,2]
[368719215,1751322639661,-500.0,0.00020071,2]
[368719216,1751322639672,-500.0,0.00020071,2]
[368719217,1751322639681,-500.0,0.00020071,2]
[368719218,1751322639691,-500.0,0.00020071,2]
[368719219,1751322639700,-500.0,0.00020071,2]
[368719220,1751322639709,-500.0,0.00020071,2]
[368719221,1751322639719,-1241.29873564,0.00020072,2]
[368719222,1751322639729,-460.0,0.00020096,2]
[368719223,1751322639739,-460.0,0.00020096,2]
[368719224,1751322639752,-178.26,0.00020096,2]
[368719225,1751322639761,-460.0,0.00020096,2]
[368719226,1751322639772,-460.0,0.00020097,2]
[368719227,1751322639781,-460.0,0.00020097,2]
[368719228,1751322639791,-466.38,0.00020097,2]
[368719229,1751322639801,-460.0,0.00020097,2]
[368719230,1751322639810,-212.87,0.00020097,2]
[368719231,1751322639820,-460.0,0.00020098,2]
[368719232,1751322639830,-787.18,0.00020098,2]
[368719233,1751322639839,-460.0,0.00020098,2]
[368719234,1751322639849,-24900.0,0.000201,2]
[368719235,1751322639859,-1000.0,0.00020135,2]
[368719236,1751322639869,-297.125636,0.00020187,2]
[368719237,1751322639878,-214.99848635,0.00020194,2]
[368719238,1751322639888,-160.0,0.00020194,2]
[368719239,1751322639898,-12569.13231816,0.00020194,2]
[368719240,1751322639908,-230.31346914,0.00020194,2]
[368719241,1751322639918,-837.16779106,0.00020194,2]
[368719242,1751322639927,-847.41730813,0.00020194,2]
[368719243,1751322639937,-160.0,0.00020194,2]
[368719244,1751322639946,-1241.29873564,0.00020245,2]
[368719245,1751322639956,-460.0,0.0002037,2]
[368719246,1751322639966,-460.0,0.0002037,2]
[368719247,1751322639975,-335.59,0.0002037,2]
[368719248,1751322639985,-460.0,0.00020371,2]
[368719249,1751322639994,-460.0,0.00020371,2]
[368719250,1751322640003,-466.38,0.00020371,2]
[368719251,1751322640013,-460.0,0.00020372,2]
[368719252,1751322640024,-1241.29873564,0.00020417,3]
[368719253,1751322640034,-177.022,0.00020489,2]
[368719254,1751322640043,-1241.29873564,0.0002059,3]
[368719255,1751322640053,-460.0,0.00020644,2]
[368719256,1751322640063,-287.4,0.00020645,2]
[368719257,1751322640073,-460.0,0.00020645,2]
[368719258,1751322640083,-466.38,0.00020645,2]
[368719259,1751322640093,-460.0,0.00020646,2]
[368719260,1751322640102,-1241.29873564,0.00020762,3]
[368719261,1751322640112,-460.0,0.00020918,2]
[368719262,1751322640121,-460.0,0.00020919,2]
[368719264,1751322640130,-466.38,0.00020919,2]
[368719266,1751322640304,-460.0,0.0002092,2]
[368719268,1751322640314,-1241.29873564,0.00020934,4]
[368719270,1751322640324,-1241.29873564,0.00021107,4]
[368719272,1751322640334,-25000.0,0.0002117,2]
[368719274,1751322640344,-151.0,0.0002117,2]
[368719276,1751322640353,-5000.0,0.0002117,2]
[368719278,1751322640364,-23221.87729931,0.0002117,2]
[368719280,1751322640374,-690.642,0.0002117,2]
[368719281,1751322640383,-931.80713625,0.0002117,2]
[368719282,1751322640392,-500.0,0.0002117,2]
[368719283,1751322640402,-500.0,0.0002117,2]
[368719284,1751322640412,-500.0,0.0002117,2]
[368719285,1751322640421,-207.4,0.0002117,2]
[368719286,1751322640430,-500.0,0.0002117,2]
[368719287,1751322640440,-500.0,0.0002117,2]
[368719288,1751322640450,-500.0,0.0002117,2]
[368719289,1751322640460,-465.60752438,0.0002117,2]
[368719290,1751322640470,-500.0,0.0002117,2]
[368719291,1751322640479,-500.0,0.0002117,2]
[368719292,1751322640489,-500.0,0.0002117,2]
[368719294,1751322640499,-500.0,0.0002117,2]
[368719296,1751322640509,-500.0,0.0002117,2]
[368719297,1751322640519,-500.0,0.0002117,2]
[368719298,1751322640530,-500.0,0.0002117,2]
[368719299,1751322640540,-500.0,0.0002117,2]
[368719300,1751322640549,-500.0,0.0002117,2]
[368719301,1751322640559,-500.0,0.0002117,2]
[368719302,1751322640569,-500.0,0.0002117,2]
[368719303,1751322640579,-500.0,0.0002117,2]
[368719304,1751322640589,-500.0,0.0002117,2]
[368719305,1751322640599,-500.0,0.0002117,2]
[368719306,1751322640609,-460.0,0.00021192,2]
[368719307,1751322640618,-460.0,0.00021193,2]
[368719308,1751322640627,-466.38,0.00021193,2]
[368719309,1751322640637,-460.0,0.00021194,2]
[368719310,1751322640647,-500.0,0.00021205,2]
[368719311,1751322640656,-690.642,0.00021225,2]
[368719312,1751322640666,-160.06,0.00021243,3]
[368719313,1751322640676,-480.2,0.00021243,3]
[368719314,1751322640686,-12500.0,0.00021253,2]
[368719315,1751322640695,-168.0,0.00021276,2]
[368719316,1751322640705,-1241.29873564,0.00021279,5]
[368719317,1751322640715,-168.0,0.00021369,2]
[368719318,1751322640724,-456.45344235,0.0002145,3]
[368719319,1751322640733,-1241.29873564,0.00021452,5]
[368719320,1751322640745,-460.0,0.00021466,2]
[368719321,1751322640755,-460.0,0.00021467,2]
[368719322,1751322640764,-466.38,0.00021467,2]
[368719323,1751322640774,-460.0,0.00021468,2]
[368719324,1751322640784,-1271.90385704,0.0002154,2]
[368719325,1751322640794,-27335.66217394,0.00021573,2]
[368719326,1751322640804,-1000.0,0.0002161,5]
[368719327,1751322640814,-1241.29873564,0.00021624,5]
[368719328,1751322640824,-1271.90385701,0.0002163,2]
[368719329,1751322640834,-500.0,0.0002164,2]
[368719330,1751322640844,-500.0,0.0002164,2]
[368719331,1751322640853,-500.0,0.0002164,2]
[368719332,1751322640863,-500.0,0.0002164,2]
[368719333,1751322640872,-500.0,0.0002164,2]
[368719334,1751322640882,-500.0,0.0002164,2]
[368719335,1751322640892,-500.0,0.0002164,2]
[368719336,1751322640902,-500.0,0.0002164,2]
[368719337,1751322640913,-500.0,0.0002164,2]
[368719338,1751322640923,-500.0,0.0002164,2]
[368719339,1751322640934,-500.0,0.0002164,2]
[368719340,1751322640944,-500.0,0.0002164,2]
[368719341,1751322640954,-500.0,0.0002164,2]
[368719342,1751322640965,-164.32624332,0.0002164,2]
[368719343,1751322640975,-500.0,0.0002164,2]
[368719344,1751322640986,-490.09118242,0.0002164,2]
[368719345,1751322640996,-500.0,0.0002164,2]
[368719346,1751322641005,-500.0,0.0002164,2]
[368719347,1751322641015,-500.0,0.0002164,2]
[368719348,1751322641026,-500.0,0.0002164,2]
[368719349,1751322641035,-500.0,0.0002164,2]
[368719350,1751322641045,-500.0,0.0002164,2]
[368719351,1751322641054,-300.0,0.0002164,2]
[368719352,1751322641064,-370000.0,0.00021641,2]
[368719353,1751322641073,-151.0,0.00021718,2]
[368719354,1751322641082,-1271.90385701,0.0002172,2]
[368719355,1751322641091,-460.0,0.0002174,2]
[368719356,1751322641101,-460.0,0.00021741,2]
[368719357,1751322641110,-466.38,0.00021741,2]
[368719358,1751322641119,-460.0,0.00021742,2]
[368719359,1751322641128,-168.0,0.00021761,2]
[368719360,1751322641137,-168.0,0.00021764,2]
[368719361,1751322641147,-168.0,0.00021774,2]
[368719362,1751322641156,-1241.29873564,0.00021797,6]
[368719363,1751322641166,-1271.90385701,0.0002181,2]
[368719364,1751322641176,-168.0,0.0002182,2]
[368719365,1751322641187,-1271.90385701,0.000219,2]
[368719366,1751322641197,-1768.83,0.000219,2]
[368719367,1751322641207,-485.0,0.00021913,2]
[368719368,1751322641217,-500.0,0.00021917,2]
[368719369,1751322641226,-500.0,0.00021917,2]
[368719370,1751322641237,-500.0,0.00021917,2]
[368719371,1751322641247,-500.0,0.00021917,2]
[368719372,1751322641257,-500.0,0.00021917,2]
[368719373,1751322641266,-500.0,0.00021917,2]
[368719374,1751322641279,-500.0,0.00021917,2]
[368719375,1751322641288,-500.0,0.00021917,2]
[368719376,1751322641298,-400.0,0.00021918,7]
[368719377,1751322641307,-1142.47664435,0.00021918,2]
[368719378,1751322641317,-1241.29873564,0.00021969,6]
[368719379,1751322641326,-500.0,0.00021973,2]
[368719380,1751322641336,-501.5545175,0.00021973,2]
[368719381,1751322641346,-500.0,0.00021973,2]
[368719382,1751322641355,-182.90443048,0.00021973,2]
[368719383,1751322641364,-500.0,0.00021973,2]
[368719384,1751322641374,-311.95562575,0.00021973,2]
[368719385,1751322641383,-194.43274689,0.00021973,2]
[368719386,1751322641392,-500.0,0.00021973,2]
[368719387,1751322641402,-500.0,0.00021973,2]
[368719388,1751322641411,-500.0,0.00021973,2]
[368719389,1751322641420,-500.0,0.00021973,2]
[368719390,1751322641430,-500.0,0.00021973,2]
[368719391,1751322641439,-500.0,0.00021973,2]
[368719392,1751322641448,-502.90420814,0.00021973,2]
[368719393,1751322641458,-500.0,0.00021973,2]
[368719394,1751322641467,-521.29076982,0.00021973,2]
[368719395,1751322641476,-500.0,0.00021973,2]
[368719396,1751322641486,-500.0,0.00021973,2]
[368719397,1751322641495,-500.0,0.00021973,2]
[368719398,1751322641505,-500.0,0.00021973,2]
[368719399,1751322641514,-500.0,0.00021973,2]
[368719400,1751322641524,-500.0,0.00021973,2]
[368719401,1751322641534,-500.0,0.00021973,2]
[368719402,1751322641543,-500.0,0.00021973,2]
[368719403,1751322641553,-500.0,0.00021973,2]
[368719404,1751322641562,-600.0,0.00021973,2]
[368719405,1751322641572,-500.0,0.00021973,2]
[368719406,1751322641582,-500.0,0.00021973,2]
[368719407,1751322641591,-500.0,0.00021973,2]
[368719408,1751322641601,-75116.99563664,0.00021999,2]